[Event "Late-Titled-Tuesday-Blitz-March-12-2024"]
[Site "Chess.com"]
[Date "2024.03.12"]
[Round "6"]
[White "Yeritsyaan"]
[Black "nj123456"]
[Result "1/2-1/2"]
[WhiteElo "2649"]
[BlackElo "2478"]
[TimeControl "180+1"]
[EndTime "15:05:11 PDT"]
[Termination "Game drawn by repetition"]

1. c4 {[%clk 0:03:00.9]} 1... Nf6 {[%clk 0:02:58.2]} 2. g3 {[%clk 0:03:01.3]}
2... e6 {[%clk 0:02:59.1]} 3. Bg2 {[%clk 0:03:01.5]} 3... d5 {[%clk 0:03:00]} 4.
Nf3 {[%clk 0:03:01.1]} 4... Be7 {[%clk 0:02:59.9]} 5. O-O {[%clk 0:03:01.7]}
5... O-O {[%clk 0:02:59.9]} 6. b3 {[%clk 0:03:01.5]} 6... c5 {[%clk 0:02:59.5]}
7. Bb2 {[%clk 0:03:01.7]} 7... Nc6 {[%clk 0:02:59.8]} 8. cxd5 {[%clk 0:03:00.2]}
8... exd5 {[%clk 0:03:00.4]} 9. d4 {[%clk 0:03:00.8]} 9... b6 {[%clk 0:03:00.2]}
10. Nc3 {[%clk 0:03:00.6]} 10... Bb7 {[%clk 0:02:59.8]} 11. Rc1 {[%clk
0:03:01.3]} 11... h6 {[%clk 0:02:57.6]} 12. dxc5 {[%clk 0:03:00.9]} 12... Bxc5
{[%clk 0:02:58]} 13. e3 {[%clk 0:02:59.8]} 13... Re8 {[%clk 0:02:45]} 14. Na4
{[%clk 0:02:59.8]} 14... Be7 {[%clk 0:02:43.4]} 15. Nd4 {[%clk 0:03:00.4]} 15...
Ne5 {[%clk 0:02:38.8]} 16. Nf5 {[%clk 0:02:59.8]} 16... Bf8 {[%clk 0:02:39.1]}
17. Nc3 {[%clk 0:02:51.6]} 17... Rc8 {[%clk 0:02:29.2]} 18. Nb5 {[%clk 0:02:46]}
18... Rxc1 {[%clk 0:02:27.3]} 19. Bxc1 {[%clk 0:02:42.5]} 19... Qd7 {[%clk
0:02:26]} 20. Nfd4 {[%clk 0:02:35.5]} 20... Ba6 {[%clk 0:02:22.4]} 21. a4 {[%clk
0:02:33.1]} 21... Ne4 {[%clk 0:02:21.1]} 22. Bb2 {[%clk 0:02:32.2]} 22... Rc8
{[%clk 0:02:13.9]} 23. Nf3 {[%clk 0:02:30.2]} 23... Nxf3+ {[%clk 0:02:10.3]} 24.
Bxf3 {[%clk 0:02:30.6]} 24... Bxb5 {[%clk 0:02:10.8]} 25. axb5 {[%clk
0:02:27.7]} 25... Qxb5 {[%clk 0:02:11.7]} 26. Bd4 {[%clk 0:01:58.1]} 26... a5
{[%clk 0:02:02.5]} 27. Bg4 {[%clk 0:01:53.2]} 27... Rd8 {[%clk 0:02:00.1]} 28.
Be2 {[%clk 0:01:51.3]} 28... Qb4 {[%clk 0:01:59.7]} 29. Bd3 {[%clk 0:01:47.9]}
29... Bc5 {[%clk 0:01:58.2]} 30. Ba1 {[%clk 0:01:44.6]} 30... Be7 {[%clk
0:01:53.2]} 31. Qg4 {[%clk 0:01:29.1]} 31... Bf6 {[%clk 0:01:46.1]} 32. Bxe4
{[%clk 0:01:10]} 32... Qxe4 {[%clk 0:01:47]} 33. Qxe4 {[%clk 0:01:05.1]} 33...
dxe4 {[%clk 0:01:47.9]} 34. Bxf6 {[%clk 0:01:05.4]} 34... gxf6 {[%clk
0:01:48.8]} 35. Rc1 {[%clk 0:01:05.7]} 35... Rd3 {[%clk 0:01:48.1]} 36. Rb1
{[%clk 0:01:03.8]} 36... b5 {[%clk 0:01:47.7]} 37. Kf1 {[%clk 0:01:03.9]} 37...
Rd2 {[%clk 0:01:45.3]} 38. Ra1 {[%clk 0:01:01.5]} 38... Rb2 {[%clk 0:01:42.4]}
39. Rxa5 {[%clk 0:01:01.4]} 39... Rxb3 {[%clk 0:01:42.3]} 40. Kg2 {[%clk
0:00:58.4]} 40... Kg7 {[%clk 0:01:42.7]} 41. g4 {[%clk 0:00:58.5]} 41... Kg6
{[%clk 0:01:43]} 42. Kg3 {[%clk 0:00:57.6]} 42... f5 {[%clk 0:01:41.9]} 43. h4
{[%clk 0:00:51.1]} 43... fxg4 {[%clk 0:01:41.1]} 44. Kxg4 {[%clk 0:00:52]} 44...
Rb2 {[%clk 0:01:32]} 45. Ra6+ {[%clk 0:00:52.3]} 45... Kg7 {[%clk 0:01:31.8]}
46. Kg3 {[%clk 0:00:50.5]} 46... b4 {[%clk 0:01:30.9]} 47. Rb6 {[%clk
0:00:48.3]} 47... h5 {[%clk 0:01:29]} 48. Rb5 {[%clk 0:00:45.8]} 48... Kg6
{[%clk 0:01:28.9]} 49. Rb6+ {[%clk 0:00:46.1]} 49... f6 {[%clk 0:01:29.5]} 50.
Re6 {[%clk 0:00:45.3]} 50... Kf5 {[%clk 0:01:29.5]} 51. Rb6 {[%clk 0:00:46]}
51... b3 {[%clk 0:01:29]} 52. Rb5+ {[%clk 0:00:46.3]} 52... Kg6 {[%clk
0:01:28.5]} 53. Rb4 {[%clk 0:00:46.8]} 53... f5 {[%clk 0:01:27.5]} 54. Rb6+
{[%clk 0:00:46.7]} 54... Kf7 {[%clk 0:01:28.1]} 55. Rb4 {[%clk 0:00:32.6]} 55...
Ke6 {[%clk 0:01:27.6]} 56. Rb5 {[%clk 0:00:33.3]} 56... Rb1 {[%clk 0:01:25.5]}
57. Kf4 {[%clk 0:00:31.3]} 57... b2 {[%clk 0:01:25]} 58. Rb6+ {[%clk 0:00:31.8]}
58... Kd5 {[%clk 0:01:24.9]} 59. Kxf5 {[%clk 0:00:32.4]} 59... Kc4 {[%clk
0:01:23.2]} 60. Kxe4 {[%clk 0:00:31.1]} 60... Kc3 {[%clk 0:01:23.6]} 61. Rc6+
{[%clk 0:00:31]} 61... Kd2 {[%clk 0:01:24]} 62. Rb6 {[%clk 0:00:30]} 62... Kc3
{[%clk 0:01:20.2]} 63. Rc6+ {[%clk 0:00:28]} 63... Kd2 {[%clk 0:01:19.3]} 64.
Rb6 {[%clk 0:00:27.1]} 64... Kc3 {[%clk 0:01:14.5]} 1/2-1/2

[Event "Late-Titled-Tuesday-Blitz-March-12-2024"]
[Site "Chess.com"]
[Date "2024.03.12"]
[Round "6"]
[White "Hikaru"]
[Black "shimastream"]
[Result "1-0"]
[WhiteElo "3256"]
[BlackElo "2978"]
[TimeControl "180+1"]
[EndTime "15:05:13 PDT"]
[Termination "Hikaru won by resignation"]

1. d4 {[%clk 0:03:00.9]} 1... d5 {[%clk 0:02:57.3]} 2. c4 {[%clk 0:02:57.1]}
2... e6 {[%clk 0:02:57]} 3. Nc3 {[%clk 0:02:56.9]} 3... a6 {[%clk 0:02:53.4]} 4.
cxd5 {[%clk 0:02:39.8]} 4... exd5 {[%clk 0:02:54.3]} 5. Nf3 {[%clk 0:02:39.3]}
5... Nf6 {[%clk 0:02:53.8]} 6. Bg5 {[%clk 0:02:38.9]} 6... Be6 {[%clk
0:02:54.1]} 7. Qb3 {[%clk 0:02:37.2]} 7... Nbd7 {[%clk 0:02:30.5]} 8. e3 {[%clk
0:02:37.2]} 8... b5 {[%clk 0:02:23.3]} 9. Qc2 {[%clk 0:02:31.9]} 9... c5 {[%clk
0:02:21.5]} 10. dxc5 {[%clk 0:02:32.8]} 10... Bxc5 {[%clk 0:02:21.9]} 11. Bd3
{[%clk 0:02:32.6]} 11... h6 {[%clk 0:02:20.8]} 12. Bh4 {[%clk 0:02:32.5]} 12...
O-O {[%clk 0:02:20.2]} 13. O-O {[%clk 0:02:32.1]} 13... Rc8 {[%clk 0:02:20.8]}
14. Qb1 {[%clk 0:02:29.7]} 14... Qb6 {[%clk 0:02:10.4]} 15. a4 {[%clk
0:02:28.1]} 15... d4 {[%clk 0:01:45.7]} 16. exd4 {[%clk 0:02:20.8]} 16... Bxd4
{[%clk 0:01:46.6]} 17. axb5 {[%clk 0:02:18.3]} 17... axb5 {[%clk 0:01:46.1]} 18.
Nxb5 {[%clk 0:02:02.7]} 18... Bc5 {[%clk 0:01:44.4]} 19. Nc3 {[%clk 0:02:03]}
19... Be7 {[%clk 0:01:28.5]} 20. Re1 {[%clk 0:01:53.7]} 20... Rb8 {[%clk
0:01:24.8]} 21. Bg3 {[%clk 0:01:48]} 21... Rb7 {[%clk 0:01:19.1]} 22. Bf5 {[%clk
0:01:34.4]} 22... Nc5 {[%clk 0:01:14]} 23. Bxe6 {[%clk 0:01:27.7]} 23... Nxe6
{[%clk 0:01:14.9]} 24. Be5 {[%clk 0:01:26.1]} 24... Qxb2 {[%clk 0:01:09.5]} 25.
Qxb2 {[%clk 0:01:23.5]} 25... Rxb2 {[%clk 0:01:10.4]} 26. Nd5 {[%clk 0:01:24.2]}
26... Rb7 {[%clk 0:01:10.6]} 27. Nxe7+ {[%clk 0:01:24.5]} 27... Rxe7 {[%clk
0:01:11]} 28. Bd6 {[%clk 0:01:25.2]} 28... Rfe8 {[%clk 0:01:06.6]} 29. Bxe7
{[%clk 0:01:25.4]} 29... Rxe7 {[%clk 0:01:07.5]} 30. Nd4 {[%clk 0:01:25.8]}
30... Nd5 {[%clk 0:01:04.1]} 31. Nxe6 {[%clk 0:01:25]} 31... fxe6 {[%clk
0:01:05]} 32. g3 {[%clk 0:01:19.2]} 32... Kf7 {[%clk 0:01:05]} 33. Ra3 {[%clk
0:01:18.7]} 33... Nf6 {[%clk 0:01:04.2]} 34. Rea1 {[%clk 0:01:18.9]} 34... e5
{[%clk 0:00:55.5]} 35. Ra7 {[%clk 0:01:18]} 35... g5 {[%clk 0:00:51.6]} 36. Kf1
{[%clk 0:01:09.5]} 36... Rxa7 {[%clk 0:00:50.3]} 37. Rxa7+ {[%clk 0:01:08.1]}
37... Kg6 {[%clk 0:00:51.2]} 38. Re7 {[%clk 0:01:06.9]} 38... Kf5 {[%clk
0:00:51.2]} 39. h3 {[%clk 0:01:06.7]} 39... h5 {[%clk 0:00:51.2]} 40. Ra7 {[%clk
0:01:06.8]} 40... h4 {[%clk 0:00:47.3]} 41. Ra4 {[%clk 0:00:41.4]} 41... e4
{[%clk 0:00:35.2]} 42. Ra5+ {[%clk 0:00:40.4]} 42... Kg6 {[%clk 0:00:35.6]} 43.
gxh4 {[%clk 0:00:38.1]} 43... gxh4 {[%clk 0:00:35.8]} 44. Re5 {[%clk 0:00:38]}
44... Kh6 {[%clk 0:00:31.6]} 45. Ke2 {[%clk 0:00:38.3]} 1-0

[Event "Late-Titled-Tuesday-Blitz-March-12-2024"]
[Site "Chess.com"]
[Date "2024.03.12"]
[Round "6"]
[White "FMYiLiu"]
[Black "PoXerStar"]
[Result "0-1"]
[WhiteElo "2500"]
[BlackElo "2383"]
[TimeControl "180+1"]
[EndTime "15:05:14 PDT"]
[Termination "PoXerStar won on time"]

1. d4 {[%clk 0:03:00.9]} 1... Nf6 {[%clk 0:02:58.6]} 2. Nf3 {[%clk 0:03:01.2]}
2... g6 {[%clk 0:02:56.3]} 3. Nc3 {[%clk 0:03:01.6]} 3... d5 {[%clk 0:02:54.5]}
4. Bf4 {[%clk 0:03:02.1]} 4... c6 {[%clk 0:02:52.4]} 5. h4 {[%clk 0:02:58.6]}
5... h5 {[%clk 0:02:45.6]} 6. e3 {[%clk 0:02:54.1]} 6... Bg7 {[%clk 0:02:44.8]}
7. Qd2 {[%clk 0:02:53.4]} 7... b5 {[%clk 0:02:39.2]} 8. Ne5 {[%clk 0:02:42.8]}
8... O-O {[%clk 0:02:14.4]} 9. f3 {[%clk 0:02:42.1]} 9... Nfd7 {[%clk
0:02:10.8]} 10. O-O-O {[%clk 0:02:09.5]} 10... Nxe5 {[%clk 0:02:07.3]} 11. dxe5
{[%clk 0:02:09.7]} 11... Nd7 {[%clk 0:01:39.5]} 12. e4 {[%clk 0:02:09]} 12... b4
{[%clk 0:01:26.2]} 13. Na4 {[%clk 0:01:35.7]} 13... Nxe5 {[%clk 0:01:24.5]} 14.
exd5 {[%clk 0:01:34.2]} 14... cxd5 {[%clk 0:01:19.2]} 15. Qxd5 {[%clk
0:01:31.8]} 15... Qc7 {[%clk 0:01:11.5]} 16. Bxe5 {[%clk 0:00:34.5]} 16... Bxe5
{[%clk 0:01:04.7]} 17. Qxa8 {[%clk 0:00:34.8]} 17... Bf5 {[%clk 0:00:55.6]} 18.
Qxf8+ {[%clk 0:00:32.8]} 18... Kxf8 {[%clk 0:00:53.3]} 19. Bd3 {[%clk
0:00:33.7]} 19... Bd7 {[%clk 0:00:47.6]} 20. b3 {[%clk 0:00:30.9]} 20... Bxa4
{[%clk 0:00:46.2]} 21. bxa4 {[%clk 0:00:31.2]} 21... Qc3 {[%clk 0:00:33.6]} 22.
a5 {[%clk 0:00:19.5]} 22... Bf4+ {[%clk 0:00:28]} 23. Kb1 {[%clk 0:00:19.8]}
23... Qa3 {[%clk 0:00:25.9]} 24. Rhe1 {[%clk 0:00:17.8]} 24... Bh6 {[%clk
0:00:23.9]} 25. Re2 {[%clk 0:00:02.5]} 25... Bg7 {[%clk 0:00:22.7]} 26. c3
{[%clk 0:00:02.7]} 26... bxc3 {[%clk 0:00:22.8]} 27. a6 {[%clk 0:00:03.4]} 27...
Qb4+ {[%clk 0:00:18.6]} 0-1

[Event "Late-Titled-Tuesday-Blitz-March-12-2024"]
[Site "Chess.com"]
[Date "2024.03.12"]
[Round "6"]
[White "santosalberto1987"]
[Black "TheAlienParty"]
[Result "0-1"]
[WhiteElo "2538"]
[BlackElo "2403"]
[TimeControl "180+1"]
[EndTime "15:05:20 PDT"]
[Termination "TheAlienParty won by resignation"]

1. e4 {[%clk 0:02:52.4]} 1... e5 {[%clk 0:02:58.5]} 2. Nf3 {[%clk 0:02:52.2]}
2... Nc6 {[%clk 0:02:58.1]} 3. Bc4 {[%clk 0:02:52.3]} 3... Bc5 {[%clk
0:02:57.6]} 4. O-O {[%clk 0:02:52.2]} 4... Nf6 {[%clk 0:02:56.2]} 5. d4 {[%clk
0:02:52.4]} 5... Bxd4 {[%clk 0:02:55.6]} 6. Nxd4 {[%clk 0:02:52.5]} 6... Nxd4
{[%clk 0:02:55.3]} 7. Bg5 {[%clk 0:02:53]} 7... h6 {[%clk 0:02:44.5]} 8. Bh4
{[%clk 0:02:53]} 8... Qe7 {[%clk 0:02:43.5]} 9. f4 {[%clk 0:02:52.5]} 9... Qc5
{[%clk 0:02:42.9]} 10. Bf2 {[%clk 0:02:19.9]} 10... Qxc4 {[%clk 0:02:39.1]} 11.
fxe5 {[%clk 0:02:20]} 11... Ne2+ {[%clk 0:02:31.7]} 12. Kh1 {[%clk 0:02:19.8]}
12... Nxe4 {[%clk 0:02:29.5]} 13. Be3 {[%clk 0:02:15.6]} 13... N2g3+ {[%clk
0:02:23.9]} 14. hxg3 {[%clk 0:02:15.6]} 14... Nxg3+ {[%clk 0:02:23.6]} 15. Kg1
{[%clk 0:02:16.1]} 15... Nxf1 {[%clk 0:02:18.4]} 16. Qxf1 {[%clk 0:02:17]} 16...
Qxc2 {[%clk 0:02:15.9]} 17. Nc3 {[%clk 0:02:14.4]} 17... c6 {[%clk 0:02:13.8]}
18. Re1 {[%clk 0:02:06.8]} 18... b6 {[%clk 0:02:06.7]} 19. Qf3 {[%clk
0:01:48.3]} 19... Bb7 {[%clk 0:02:00.3]} 20. Ne4 {[%clk 0:01:48.2]} 20... O-O-O
{[%clk 0:01:57.2]} 21. Nd6+ {[%clk 0:01:48.1]} 21... Kb8 {[%clk 0:01:57]} 22.
Nxf7 {[%clk 0:01:39.7]} 22... Rhf8 {[%clk 0:01:56.3]} 23. Qg3 {[%clk 0:01:40]}
23... Ka8 {[%clk 0:01:16.5]} 24. Nxd8 {[%clk 0:01:39.7]} 24... Rxd8 {[%clk
0:01:16.3]} 25. Qxg7 {[%clk 0:01:38.2]} 25... Qxb2 {[%clk 0:01:14.8]} 26. Bxh6
{[%clk 0:01:21.7]} 26... c5 {[%clk 0:01:14]} 27. Bf4 {[%clk 0:01:12.8]} 27...
Bd5 {[%clk 0:01:11.1]} 28. Qg3 {[%clk 0:00:34.5]} 28... Rg8 {[%clk 0:01:04.9]}
29. Bg5 {[%clk 0:00:34.8]} 29... Bxg2 {[%clk 0:00:55.8]} 30. Qxg2+ {[%clk
0:00:32.8]} 30... Qxg2+ {[%clk 0:00:55.2]} 31. Kxg2 {[%clk 0:00:33.7]} 31...
Rxg5+ {[%clk 0:00:55.7]} 32. Kf3 {[%clk 0:00:34.6]} 32... Kb7 {[%clk 0:00:53.9]}
33. Ke4 {[%clk 0:00:31.2]} 33... Rg2 {[%clk 0:00:49.6]} 34. Rd1 {[%clk 0:00:31]}
34... Kc7 {[%clk 0:00:48.8]} 35. a4 {[%clk 0:00:28.1]} 35... Rg4+ {[%clk
0:00:47]} 36. Kf5 {[%clk 0:00:28.2]} 36... Rxa4 {[%clk 0:00:46.4]} 37. Kf6
{[%clk 0:00:28.4]} 37... Rh4 {[%clk 0:00:41.1]} 38. Kf5 {[%clk 0:00:26.2]} 38...
a5 {[%clk 0:00:40]} 39. Kg5 {[%clk 0:00:26.4]} 39... Rh7 {[%clk 0:00:36.9]} 40.
Kg6 {[%clk 0:00:26.5]} 40... Re7 {[%clk 0:00:36.7]} 41. Kf6 {[%clk 0:00:26.7]}
41... Re6+ {[%clk 0:00:36.8]} 42. Kf5 {[%clk 0:00:26.7]} 42... Kc6 {[%clk
0:00:36.7]} 43. Kf4 {[%clk 0:00:25.1]} 43... a4 {[%clk 0:00:36.2]} 44. Ke4
{[%clk 0:00:24.8]} 44... d6 {[%clk 0:00:34.2]} 0-1

[Event "Late-Titled-Tuesday-Blitz-March-12-2024"]
[Site "Chess.com"]
[Date "2024.03.12"]
[Round "6"]
[White "OverallStranger"]
[Black "expii"]
[Result "1-0"]
[WhiteElo "2387"]
[BlackElo "2194"]
[TimeControl "180+1"]
[EndTime "15:05:20 PDT"]
[Termination "OverallStranger won by resignation"]

1. e4 {[%clk 0:02:51.1]} 1... c5 {[%clk 0:02:58.4]} 2. Nc3 {[%clk 0:02:49]} 2...
d6 {[%clk 0:02:56.2]} 3. f4 {[%clk 0:02:48.3]} 3... Nc6 {[%clk 0:02:53.7]} 4.
Nf3 {[%clk 0:02:47.4]} 4... g6 {[%clk 0:02:45.5]} 5. Bc4 {[%clk 0:02:46.7]} 5...
Bg7 {[%clk 0:02:43.7]} 6. O-O {[%clk 0:02:46.5]} 6... e6 {[%clk 0:02:40.5]} 7.
d4 {[%clk 0:02:45.4]} 7... cxd4 {[%clk 0:02:35.4]} 8. Nb5 {[%clk 0:02:45.7]}
8... a6 {[%clk 0:02:26.5]} 9. Nbxd4 {[%clk 0:02:45.3]} 9... Nge7 {[%clk
0:02:18]} 10. Be3 {[%clk 0:02:42.4]} 10... O-O {[%clk 0:02:11.8]} 11. Kh1 {[%clk
0:02:39.2]} 11... b5 {[%clk 0:02:09.4]} 12. Bb3 {[%clk 0:02:35.7]} 12... Bb7
{[%clk 0:02:07.5]} 13. c3 {[%clk 0:02:28]} 13... Rc8 {[%clk 0:02:01.4]} 14. Bc2
{[%clk 0:02:26.1]} 14... Qc7 {[%clk 0:01:53.8]} 15. a3 {[%clk 0:02:24.2]} 15...
Rfd8 {[%clk 0:01:46.2]} 16. f5 {[%clk 0:02:22.8]} 16... exf5 {[%clk 0:01:41.4]}
17. exf5 {[%clk 0:02:22.6]} 17... Ne5 {[%clk 0:01:35.8]} 18. Nxe5 {[%clk
0:02:22.1]} 18... dxe5 {[%clk 0:01:36.7]} 19. f6 {[%clk 0:02:21.9]} 19... exd4
{[%clk 0:01:25.4]} 20. fxe7 {[%clk 0:02:01.5]} 20... Qxe7 {[%clk 0:01:17.6]} 21.
Bxd4 {[%clk 0:02:00.4]} 21... Qg5 {[%clk 0:01:05.3]} 22. Qe2 {[%clk 0:01:52.5]}
22... Bxd4 {[%clk 0:00:54.9]} 23. cxd4 {[%clk 0:01:50.9]} 23... Rxd4 {[%clk
0:00:53]} 24. Rad1 {[%clk 0:01:33.3]} 24... Rxd1 {[%clk 0:00:37.2]} 25. Bxd1
{[%clk 0:01:29.9]} 25... Kg7 {[%clk 0:00:26.2]} 26. Bb3 {[%clk 0:01:27.8]} 26...
Bd5 {[%clk 0:00:20.5]} 27. Bxd5 {[%clk 0:01:23.2]} 27... Qxd5 {[%clk 0:00:21.4]}
28. Qf2 {[%clk 0:01:23.6]} 28... Rf8 {[%clk 0:00:19.3]} 29. Qb6 {[%clk 0:01:20]}
29... Qe5 {[%clk 0:00:17.7]} 30. b4 {[%clk 0:01:10.7]} 30... Re8 {[%clk
0:00:13.5]} 31. h3 {[%clk 0:01:09.7]} 31... Re6 {[%clk 0:00:11.7]} 32. Qb7
{[%clk 0:01:08.9]} 32... Rf6 {[%clk 0:00:11.4]} 33. Rxf6 {[%clk 0:01:03.3]}
33... Qxf6 {[%clk 0:00:12.3]} 34. Qc8 {[%clk 0:01:03.7]} 34... Qa1+ {[%clk
0:00:11.9]} 35. Kh2 {[%clk 0:01:03.6]} 35... Qxa3 {[%clk 0:00:11.1]} 36. Qc5
{[%clk 0:01:03.6]} 36... Qa1 {[%clk 0:00:09.8]} 37. Qd6 {[%clk 0:01:00.1]} 37...
Qc3 {[%clk 0:00:07.3]} 38. Qe7 {[%clk 0:00:53]} 38... Qf6 {[%clk 0:00:05.8]} 39.
Qc5 {[%clk 0:00:53.1]} 39... Qb2 {[%clk 0:00:04.5]} 40. Qd6 {[%clk 0:00:52.3]}
40... Qc3 {[%clk 0:00:04.1]} 41. Qe7 {[%clk 0:00:51.8]} 41... Qf6 {[%clk
0:00:03.8]} 42. Qc5 {[%clk 0:00:51.8]} 42... Qf4+ {[%clk 0:00:03.7]} 43. Kh1
{[%clk 0:00:51.3]} 43... h5 {[%clk 0:00:03.8]} 44. Kg1 {[%clk 0:00:48]} 44... h4
{[%clk 0:00:03.8]} 45. Kh1 {[%clk 0:00:47.9]} 45... Kh7 {[%clk 0:00:04.2]} 46.
Qd5 {[%clk 0:00:46.7]} 46... Qxb4 {[%clk 0:00:03.3]} 47. Qxf7+ {[%clk
0:00:46.9]} 47... Kh6 {[%clk 0:00:03.6]} 48. Qf8+ {[%clk 0:00:47.1]} 48... Kg5
{[%clk 0:00:03.6]} 49. Qxb4 {[%clk 0:00:47.4]} 1-0

[Event "Late-Titled-Tuesday-Blitz-March-12-2024"]
[Site "Chess.com"]
[Date "2024.03.12"]
[Round "6"]
[White "Mbneu"]
[Black "Practical-Play"]
[Result "0-1"]
[WhiteElo "2253"]
[BlackElo "2461"]
[TimeControl "180+1"]
[EndTime "15:05:21 PDT"]
[Termination "Practical-Play won on time"]

1. d4 {[%clk 0:02:55.8]} 1... e6 {[%clk 0:02:57.9]} 2. c4 {[%clk 0:02:52.8]}
2... Bb4+ {[%clk 0:02:57.1]} 3. Bd2 {[%clk 0:02:52]} 3... a5 {[%clk 0:02:55.6]}
4. g3 {[%clk 0:02:47.7]} 4... Nc6 {[%clk 0:02:35.5]} 5. Nf3 {[%clk 0:02:46]}
5... d6 {[%clk 0:02:27.7]} 6. Bg2 {[%clk 0:02:44.1]} 6... Qe7 {[%clk 0:02:26.3]}
7. O-O {[%clk 0:02:42.2]} 7... Bxd2 {[%clk 0:02:24.4]} 8. Nbxd2 {[%clk
0:02:42.7]} 8... e5 {[%clk 0:02:23]} 9. d5 {[%clk 0:02:06.7]} 9... Nb8 {[%clk
0:02:15.1]} 10. Rc1 {[%clk 0:02:02]} 10... b6 {[%clk 0:02:02.2]} 11. a3 {[%clk
0:01:57.1]} 11... a4 {[%clk 0:01:59.6]} 12. Nb1 {[%clk 0:01:51.9]} 12... Nd7
{[%clk 0:01:56.5]} 13. Nc3 {[%clk 0:01:48.9]} 13... Nc5 {[%clk 0:01:56.4]} 14.
Nd2 {[%clk 0:01:48.1]} 14... f5 {[%clk 0:01:53.7]} 15. e4 {[%clk 0:01:36]} 15...
Nf6 {[%clk 0:01:48.2]} 16. f4 {[%clk 0:00:59.4]} 16... exf4 {[%clk 0:01:34.6]}
17. exf5 {[%clk 0:00:53.8]} 17... Qe3+ {[%clk 0:01:06.5]} 18. Kh1 {[%clk
0:00:52.9]} 18... Nd3 {[%clk 0:01:07.1]} 19. Nb5 {[%clk 0:00:41.4]} 19... Kd8
{[%clk 0:00:45.7]} 20. Rc3 {[%clk 0:00:32.7]} 20... Bxf5 {[%clk 0:00:35.7]} 21.
Nf3 {[%clk 0:00:24]} 21... Ng4 {[%clk 0:00:29.9]} 22. Rxd3 {[%clk 0:00:15]}
22... Bxd3 {[%clk 0:00:28.2]} 23. gxf4 {[%clk 0:00:09.8]} 23... Rf8 {[%clk
0:00:17.6]} 24. h3 {[%clk 0:00:07.5]} 24... Bxf1 {[%clk 0:00:15.6]} 25. Qxf1
{[%clk 0:00:06.5]} 25... Nf2+ {[%clk 0:00:14.9]} 26. Kh2 {[%clk 0:00:06.6]}
26... Rxf4 {[%clk 0:00:13.1]} 27. Kg3 {[%clk 0:00:04]} 27... Ne4+ {[%clk
0:00:11.6]} 28. Kh2 {[%clk 0:00:04]} 28... Nd2 {[%clk 0:00:11.5]} 29. Qe1 {[%clk
0:00:02.5]} 29... Nxf3+ {[%clk 0:00:11.4]} 0-1

[Event "Late-Titled-Tuesday-Blitz-March-12-2024"]
[Site "Chess.com"]
[Date "2024.03.12"]
[Round "6"]
[White "Fandorine"]
[Black "Mikhail_Bryakin"]
[Result "1-0"]
[WhiteElo "2960"]
[BlackElo "2746"]
[TimeControl "180+1"]
[EndTime "15:05:24 PDT"]
[Termination "Fandorine won on time"]

1. d4 {[%clk 0:03:00.9]} 1... f5 {[%clk 0:02:51.9]} 2. Bg5 {[%clk 0:03:00]} 2...
Nf6 {[%clk 0:02:46.3]} 3. Nc3 {[%clk 0:02:58.8]} 3... d5 {[%clk 0:02:45.9]} 4.
f3 {[%clk 0:02:57.5]} 4... Qd6 {[%clk 0:02:29.8]} 5. Qd2 {[%clk 0:02:57.2]} 5...
e6 {[%clk 0:02:04.4]} 6. O-O-O {[%clk 0:02:55.2]} 6... Be7 {[%clk 0:01:56.4]} 7.
e4 {[%clk 0:02:45.7]} 7... fxe4 {[%clk 0:01:54.4]} 8. fxe4 {[%clk 0:02:45.9]}
8... dxe4 {[%clk 0:01:48.3]} 9. Bxf6 {[%clk 0:02:45.6]} 9... gxf6 {[%clk
0:01:41.9]} 10. Nxe4 {[%clk 0:02:46]} 10... Qd5 {[%clk 0:01:42.2]} 11. Nc3
{[%clk 0:02:45.9]} 11... Qa5 {[%clk 0:01:28.4]} 12. Bc4 {[%clk 0:02:43.9]} 12...
Bd7 {[%clk 0:01:20.1]} 13. Nf3 {[%clk 0:02:36.7]} 13... Nc6 {[%clk 0:01:09.1]}
14. Rhe1 {[%clk 0:02:09]} 14... O-O-O {[%clk 0:00:52.7]} 15. Bxe6 {[%clk
0:02:08.5]} 15... Bb4 {[%clk 0:00:52.9]} 16. Kb1 {[%clk 0:01:39.4]} 16... Bxe6
{[%clk 0:00:33.2]} 17. Rxe6 {[%clk 0:01:40.3]} 17... Qf5 {[%clk 0:00:33.6]} 18.
Re2 {[%clk 0:01:15.8]} 18... Rd7 {[%clk 0:00:26.2]} 19. a3 {[%clk 0:01:06.1]}
19... Bxc3 {[%clk 0:00:16.8]} 20. Qxc3 {[%clk 0:01:07]} 20... Rhd8 {[%clk
0:00:16.9]} 21. Red2 {[%clk 0:01:07.7]} 21... Qd5 {[%clk 0:00:14.3]} 22. Qe3
{[%clk 0:01:01.3]} 22... Na5 {[%clk 0:00:14.2]} 23. b3 {[%clk 0:01:00.8]} 23...
Qb5 {[%clk 0:00:11.7]} 24. Qc3 {[%clk 0:00:55.9]} 24... Nc6 {[%clk 0:00:09.9]}
25. a4 {[%clk 0:00:55.4]} 25... Qd5 {[%clk 0:00:07.9]} 26. Kb2 {[%clk
0:00:54.8]} 26... a5 {[%clk 0:00:07.4]} 27. Qe3 {[%clk 0:00:45.8]} 27... Nb4
{[%clk 0:00:07.4]} 28. c3 {[%clk 0:00:41.5]} 28... Nc6 {[%clk 0:00:07.2]} 29.
Qf4 {[%clk 0:00:41.7]} 29... Qf7 {[%clk 0:00:04.7]} 30. Re1 {[%clk 0:00:35.1]}
30... Rd6 {[%clk 0:00:05]} 31. Rde2 {[%clk 0:00:32.2]} 31... Kb8 {[%clk
0:00:05]} 32. Qf5 {[%clk 0:00:29.7]} 32... Rd5 {[%clk 0:00:04.7]} 33. Qc2 {[%clk
0:00:25.6]} 33... R5d7 {[%clk 0:00:03.9]} 34. g3 {[%clk 0:00:25.9]} 34... b6
{[%clk 0:00:02.9]} 35. Nh4 {[%clk 0:00:26.2]} 35... Qh5 {[%clk 0:00:02.7]} 36.
Rf2 {[%clk 0:00:25.6]} 1-0